fUSD/lending_fUSD_20250304
["ID","MTS","AMOUNT","RATE_DAILY","PERIOD"]
[355276530,1741051840817,-2646.8,0.00012883,2]
[355276532,1741051840827,-530.12,0.00012883,2]
[355276534,1741051840836,-1446.899728,0.00012883,2]
[355276536,1741051840846,-5005.91,0.00012883,2]
[355276538,1741051840855,-6619.16,0.00012883,2]
[355276540,1741051840865,-500.0,0.00012883,2]
[355276542,1741051840874,-2509.92,0.00012883,2]
[355276545,1741051840884,-677.02,0.00012883,2]
[355276546,1741051840893,-1524.96,0.00012883,2]
[355276549,1741051840903,-1504.31,0.00012883,2]
[355276550,1741051840913,-2033.95,0.00012883,2]
[355276552,1741051840922,-1455.01,0.00012883,2]
[355276554,1741051840932,-558.65,0.00012883,2]
[355276556,1741051840941,-2133.19,0.00012883,2]
[355276558,1741051840950,-1233.86,0.00012883,2]
[355276560,1741051840960,-719.93,0.00012883,2]
[355276562,1741051840969,-1110.71,0.00012883,2]
[355276564,1741051840979,-1529.53,0.00012883,2]
[355276566,1741051840988,-2395.63,0.00012883,2]
[355276568,1741051840997,-1164.6,0.00012883,2]
[355276570,1741051841007,-1181.64,0.00012883,2]
[355276572,1741051841016,-2227.55,0.00012883,2]
[355276574,1741051841025,-1028.0,0.00012883,2]
[355276576,1741051841040,-1636.89,0.00012883,2]
[355276578,1741051841050,-927.58,0.00012883,2]
[355276580,1741051841060,-1583.1,0.00012883,2]
[355276582,1741051841070,-9344.69,0.00012883,2]
[355276584,1741051841079,-1712.87,0.00012883,2]
[355276586,1741051841089,-2965.98,0.00012883,2]
[355276588,1741051841098,-2364.21,0.00012883,2]
[355276590,1741051841108,-1912.46,0.00012883,2]
[355276592,1741051841117,-2337.61,0.00012883,2]
[355276594,1741051841126,-1689.43,0.00012883,2]
[355276596,1741051841135,-5903.23,0.00012883,2]
[355276598,1741051841144,-1541.67,0.00012883,2]
[355276600,1741051841154,-892.21,0.00012883,2]
[355276602,1741051841163,-1168.81,0.00012883,2]
[355276604,1741051841172,-1163.64,0.00012883,2]
[355276606,1741051841181,-1321.73,0.00012883,2]
[355276608,1741051841191,-974.33,0.00012883,2]
[355276609,1741051841200,-1487.92,0.00012883,2]
[355276611,1741051841210,-552.23,0.00012883,2]
[355276613,1741051841219,-16708.47,0.00012883,2]
[355276615,1741051841229,-500.0,0.00012883,2]
[355276617,1741051841238,-1501.23,0.00012883,2]
[355276619,1741051841247,-1461.34,0.00012883,2]
[355276621,1741051841263,-1192.49,0.00012883,2]
[355276623,1741051841273,-1819.24,0.00012883,2]
[355276625,1741051841289,-1025.79,0.00012883,2]
[355276627,1741051841301,-572.03,0.00012883,2]
[355276629,1741051841311,-1864.93,0.00012883,2]
[355276631,1741051841320,-981.63,0.00012883,2]
[355276633,1741051841330,-656.41,0.00012883,2]
[355276635,1741051841339,-500.0,0.00012883,2]
[355276637,1741051841350,-566.01,0.00012883,2]
[355276639,1741051841359,-1466.78,0.00012883,2]
[355276641,1741051841368,-2088.56,0.00012883,2]
[355276643,1741051841377,-1303.44,0.00012883,2]
[355276645,1741051841387,-1430.53,0.00012883,2]
[355276647,1741051841397,-1372.97,0.00012883,2]
[355276649,1741051841407,-611.12,0.00012883,2]
[355276651,1741051841416,-522.12,0.00012883,2]
[355276653,1741051841426,-866.13,0.00012884,2]
[355276655,1741051841435,-500.0,0.00012884,2]
[355276657,1741051841444,-500.0,0.00012884,2]
[355276659,1741051841453,-1775.9,0.00012884,2]
[355276661,1741051841463,-1062.3,0.00012884,2]
[355276663,1741051841472,-500.0,0.00012884,2]
[355276665,1741051841481,-500.0,0.00012884,2]
[355276666,1741051841491,-1446.04,0.00012884,2]
[355276669,1741051841501,-1209.34,0.00012884,2]
[355276670,1741051841511,-500.0,0.00012884,2]
[355276672,1741051841520,-1005.89,0.00012884,2]
[355276674,1741051841529,-500.01,0.00012884,2]
[355276676,1741051841541,-981.07,0.00012884,2]
[355276678,1741051841551,-500.0,0.00012884,2]
[355276680,1741051841561,-1084.57,0.00012884,2]
[355276682,1741051841570,-586.26,0.00012884,2]
[355276684,1741051841580,-851.55,0.00012884,2]
[355276686,1741051841589,-631.4,0.00012884,2]
[355276688,1741051841599,-500.0,0.00012884,2]
[355276690,1741051841608,-702.17,0.00012884,2]
[355276692,1741051841617,-500.0,0.00012884,2]
[355276694,1741051841627,-500.0,0.00012884,2]
[355276696,1741051841636,-500.0,0.00012884,2]
[355276698,1741051841646,-778.1,0.00012884,2]
[355276700,1741051841656,-500.0,0.00012884,2]
[355276702,1741051841666,-500.0,0.00012884,2]
[355276704,1741051841675,-529.87890265,0.00012884,2]
[355276706,1741051841684,-500.0,0.00012884,2]
[355276708,1741051841694,-687.14,0.00012884,2]
[355276710,1741051841703,-1008.2,0.00012884,2]
[355276711,1741051841712,-500.0,0.00012884,2]
[355276714,1741051841721,-1382.17,0.00012884,2]
[355276716,1741051841731,-500.0,0.00012884,2]
[355276717,1741051841741,-720.16,0.00012884,2]
[355276719,1741051841751,-956.3,0.00012884,2]
[355276721,1741051841762,-648.3,0.00012884,2]
[355276723,1741051841771,-590.34,0.00012884,2]
[355276725,1741051841781,-898.19,0.00012884,2]
[355276727,1741051841793,-1234.64,0.00012884,2]
[355276729,1741051841802,-500.0,0.00012884,2]
[355276731,1741051841812,-602.6,0.00012884,2]
[355276733,1741051841822,-1543.52,0.00012884,2]
[355276735,1741051841831,-631.3,0.00012884,2]
[355276737,1741051841841,-1976.79,0.00012884,2]
[355276739,1741051841852,-576.2,0.00012884,2]
[355276741,1741051841861,-1323.89,0.00012884,2]
[355276743,1741051841870,-500.0,0.00012884,2]
[355276745,1741051841880,-1384.98,0.00012884,2]
[355276747,1741051841890,-2361.55,0.00012884,2]
[355276749,1741051841899,-350.53293455,0.00012884,2]
[355276751,1741051841909,-3051.36,0.00012884,2]
[355276753,1741051841918,-927.6,0.00012884,2]
[355276755,1741051841927,-500.0,0.00012884,2]
[355276757,1741051841937,-689.3,0.00012884,2]
[355276758,1741051841946,-500.0,0.00012884,2]
[355276760,1741051841955,-628.69,0.00012884,2]
[355276762,1741051841965,-500.0,0.00012884,2]
[355276764,1741051841975,-27969.5,0.00012884,2]
[355276766,1741051841985,-500.0,0.00012884,2]
[355276768,1741051841994,-598.89,0.00012884,2]
[355276770,1741051842003,-1068.0,0.00012884,2]
[355276772,1741051842013,-507.79903579,0.00012884,2]
[355276774,1741051842023,-651.1,0.00012884,2]
[355276776,1741051842032,-500.0,0.00012884,2]
[355276778,1741051842044,-500.0,0.00012884,2]
[355276780,1741051842053,-1204.97,0.00012884,2]
[355276782,1741051842063,-1058.12,0.00012884,2]
[355276784,1741051842072,-500.0,0.00012884,2]
[355276786,1741051842081,-500.0,0.00012884,2]
[355276788,1741051842090,-500.0,0.00012884,2]
[355276790,1741051842099,-500.0,0.00012884,2]
[355276792,1741051842109,-500.0,0.00012884,2]
[355276794,1741051842119,-500.0,0.00012884,2]
[355276796,1741051842128,-500.0,0.00012884,2]
[355276798,1741051842137,-877.66,0.00012884,2]
[355276800,1741051842147,-2032.05,0.00012884,2]
[355276802,1741051842156,-1432.96,0.00012884,2]
[355276804,1741051842165,-500.0,0.00012884,2]
[355276806,1741051842175,-1808.72,0.00012884,2]
[355276808,1741051842184,-500.0,0.00012884,2]
[355276810,1741051842193,-4010.65,0.00012884,2]
[355276812,1741051842203,-879.86,0.00012884,2]
[355276814,1741051842213,-500.0,0.00012884,2]
[355276816,1741051842222,-30676.82,0.00012884,2]
[355276818,1741051842231,-1737.69,0.00012884,2]
[355276820,1741051842242,-710.3,0.00012884,2]
[355276822,1741051842252,-816.91,0.00012884,2]
[355276824,1741051842262,-1331.98,0.00012884,2]
[355276826,1741051842272,-500.0,0.00012884,2]
[355276828,1741051842284,-712.85,0.00012884,2]
[355276829,1741051842297,-1904.87,0.00012884,2]
[355276831,1741051842307,-817.85,0.00012884,2]
[355276833,1741051842316,-500.0,0.00012884,2]
[355276835,1741051842326,-1031.38,0.00012884,2]
[355276837,1741051842335,-500.0,0.00012884,2]
[355276839,1741051842344,-3705.11,0.00012884,2]
[355276841,1741051842356,-500.0,0.00012884,2]
[355276843,1741051842365,-1341.38,0.00012884,2]
[355276846,1741051842375,-1278.93,0.00012884,2]
[355276849,1741051842384,-787.95,0.00012884,2]
[355276851,1741051842393,-5626.15,0.00012884,2]
[355276854,1741051842402,-500.0,0.00012884,2]
[355276857,1741051842412,-500.0,0.00012884,2]
[355276860,1741051842421,-628.4602092,0.00012884,2]
[355276864,1741051842431,-2564.86,0.00012884,2]
[355276868,1741051842440,-1763.89,0.00012884,2]
[355276872,1741051842449,-788.09,0.00012884,2]
[355276876,1741051842459,-500.0,0.00012884,2]
[355276879,1741051842469,-1084.01,0.00012884,2]
[355276882,1741051842479,-5329.75,0.00012884,2]
[355276885,1741051842489,-1051.14,0.00012884,2]
[355276887,1741051842498,-500.0,0.00012884,2]
[355276890,1741051842508,-2389.63,0.00012884,2]
[355276893,1741051842517,-1060.61,0.00012884,2]
[355276896,1741051842527,-992.69,0.00012884,2]
[355276900,1741051842537,-937.07,0.00012884,2]
[355276904,1741051842548,-2885.57,0.00012884,2]
[355276907,1741051842557,-500.0,0.00012884,2]
[355276909,1741051842566,-947.41,0.00012884,2]
[355276911,1741051842576,-509.42696167,0.00012884,2]
[355276913,1741051842585,-745.96,0.00012884,2]
[355276916,1741051842595,-599.63527038,0.00012884,2]
[355276918,1741051842604,-1090.25,0.00012884,2]
[355276920,1741051842614,-682.73,0.00012884,2]
[355276922,1741051842623,-2377.03,0.00012884,2]
[355276924,1741051842632,-1320.11,0.00012884,2]
[355276925,1741051842642,-1139.72,0.00012884,2]
[355276927,1741051842651,-506.71623376,0.00012884,2]
[355276929,1741051842662,-703.36,0.00012884,2]
[355276932,1741051842672,-500.0,0.00012885,2]
[355276934,1741051842681,-818.13,0.00012885,2]
[355276936,1741051842691,-1528.04,0.00012885,2]
[355276938,1741051842701,-1460.96,0.00012885,2]
[355276940,1741051842710,-2048.63,0.00012885,2]
[355276942,1741051842720,-857.42,0.00012885,2]
[355276944,1741051842730,-1414.27,0.00012885,2]
[355276946,1741051842739,-983.58,0.00012885,2]
[355276948,1741051842749,-1245.17,0.00012885,2]
[355276950,1741051842760,-500.0,0.00012885,2]
[355276952,1741051842770,-1500.46,0.00012885,2]
[355276954,1741051842779,-1735.23,0.00012885,2]
[355276956,1741051842791,-1378.22,0.00012885,2]
[355276958,1741051842801,-1443.21,0.00012885,2]
[355276960,1741051842810,-500.0,0.00012885,2]
[355276962,1741051842820,-1084.67,0.00012885,2]
[355276964,1741051842830,-1000.0,0.00012896,2]
[355276966,1741051842839,-15879.70065135,0.000129,2]
[355276968,1741051842849,-158.28848569,0.000129,2]
[355276970,1741051842859,-2795.1361908,0.000129,2]
[355276972,1741051842868,-151.342,0.00012909,2]
[355276974,1741051842878,-525.74135708,0.00012929,2]
[355276976,1741051842887,-500.0,0.00012973,2]
[355276978,1741051842898,-525.74135708,0.00012993,2]
[355276980,1741051842907,-1412.31,0.00012994,2]
[355276982,1741051842917,-1289.73,0.00012994,2]
[355276984,1741051842928,-1057.84,0.00012994,2]
[355276986,1741051842938,-2136.87,0.00012994,2]
[355276988,1741051842948,-1764.94,0.00012994,2]
[355276990,1741051842959,-567.76,0.00012994,2]
[355276992,1741051842970,-937.08,0.00012994,2]
[355276994,1741051842980,-1169.31,0.00012994,2]
[355276996,1741051842993,-1526.48,0.00012994,2]
[355276998,1741051843003,-1197.94,0.00012994,2]
[355277000,1741051843013,-3606.76,0.00012994,2]
[355277002,1741051843024,-2999.25,0.00012994,2]
[355277004,1741051843034,-627.69,0.00012994,2]
[355277006,1741051843045,-500.0,0.00012994,2]
[355277008,1741051843055,-500.0,0.00012994,2]
[355277010,1741051843065,-481.47478167,0.00012994,2]
[355277011,1741051843075,-8506.94,0.00012994,2]
[355277013,1741051843084,-191446.53116178,0.00012995,2]
[355277015,1741051843094,-4139.0,0.00012999,2]
[355277017,1741051843103,-755637.55727278,0.00013,2]
[355277019,1741051843113,-385.34008317,0.00013,2]
[355277021,1741051843127,-889463.90689485,0.00013,2]
[355277069,1741051843775,-2027.3915013,0.00013,2]
[355277071,1741051843788,-2001.74409079,0.00013,2]
[355277114,1741051844196,-642.0,0.00012909,2]
[355277116,1741051844205,-397.9999,0.00013,2]
[355277119,1741051844230,-331.40167,0.00013,2]
[355277122,1741051844242,-1012.97035628,0.00013,2]
[355277179,1741051844808,-11061.02996349,0.00013,2]
[355277181,1741051844820,-4011.29080858,0.00013,2]
[355277186,1741051844867,-42813.30439627,0.00013,2]
[355277189,1741051844880,-1795.66259684,0.00013,2]
[355277775,1741051850979,-19514.30314447,0.00013,2]
[355277776,1741051851043,-1131.90187909,0.00013,2]
[355277777,1741051851054,-599.38775637,0.00013,2]
[355277778,1741051851065,-5455.86249196,0.00013,2]
[355277779,1741051851076,-641.90466761,0.00013,2]
[355277780,1741051851087,-606.17306595,0.00013,2]
[355277813,1741051944820,369.49,0.00020011,120]
[355277814,1741051967153,510.23,0.00010201,2]
[355277815,1741051967570,510.23,0.00012465,2]
[355277816,1741051969161,192.38,0.00012119,2]
[355277817,1741052173987,161.17,0.00012448,2]
[355277818,1741052178740,-300.0,0.00012739,2]
[355277819,1741052181013,-137.4331856,0.00012739,2]
[355277820,1741052181041,-162.5668144,0.00012784,2]
[355277821,1741052208970,-17.2659856,0.00012784,2]
[355277822,1741052208996,-282.7340144,0.000128,2]
[355277823,1741052279908,399.31271,0.000125,2]
[355277824,1741052306464,5000.0,0.000125,2]
[355277825,1741052352980,5000.0,0.000125,2]
[355277826,1741052423342,1000.0,0.00012023,2]
[355277827,1741052450248,266.23581686,0.0002,120]
[355277829,1741052612111,550.0,0.00011,2]
[355277831,1741052823946,-300.0,0.00012739,2]
[355277832,1741052825237,-28.0748892,0.00012739,2]
[355277833,1741052825260,-150.0,0.00012754,2]
[355277834,1741052825282,-121.9251108,0.00012771,2]
[355277838,1741052827041,284.18,0.0001197,2]
[355277839,1741052834704,-300.0,0.00012771,2]
[355277873,1741052896894,-246.0561669,0.00012739,2]
[355277874,1741052896924,-4108.1071,0.00012782,2]
[355277875,1741052896952,-529.76813776,0.00012782,2]
[355277876,1741052896983,-155.59928292,0.00012782,2]
[355277877,1741052897013,-184.66854452,0.00012783,2]
[355277878,1741052897041,-180.23355867,0.00012783,2]
[355277879,1741052897076,-68.50404133,0.00012783,2]
[355277880,1741052897110,-1287.75,0.00012783,2]
[355277881,1741052897139,-300.0,0.00012799,2]
[355277882,1741052897168,-354.20904168,0.000128,2]
[355277883,1741052897198,-3393.96970776,0.000128,2]
[355277884,1741052897236,-280.89654784,0.000128,2]
[355277885,1741052935666,-300.0,0.000128,2]
[355277886,1741052936627,-300.0,0.000128,2]
[355277887,1741052937746,-300.0,0.000128,2]
[355277907,1741052971996,-184.5421252,0.00012739,2]
[355277908,1741052972027,-1000.0,0.00012782,2]
[355277909,1741052972060,-75.40327313,0.00012782,2]
[355277910,1741053003845,478.13,0.00010106,2]
[355277911,1741053004096,478.13,0.0001237,2]
[355277940,1741053031879,-184.5421252,0.00012739,2]
[355277941,1741053031889,-109.26527138,0.00012782,2]
[355277942,1741053031900,-529.76813776,0.00012782,2]
[355277944,1741053031910,-61656.982,0.00012783,2]
[355277945,1741053031921,-882.4337444,0.000128,2]
[355277946,1741053031931,-1157.20346186,0.000128,2]
[355277947,1741053031941,-5000.0,0.000128,2]
[355277948,1741053031951,-335.31911,0.0001287,2]
[355277949,1741053031966,-150.0,0.00012871,2]
[355277950,1741053031976,-7658.1150615,0.00012872,2]
[355277951,1741053031987,-1414.95,0.00012881,2]
[355277952,1741053031998,-646.0,0.00012881,2]
[355277953,1741053032009,-1059.81,0.00012881,2]
[355277954,1741053032020,-1586.21,0.00012881,2]
[355277955,1741053032030,-2140.66,0.00012881,2]
[355277956,1741053032041,-1919.25,0.00012881,2]
[355277957,1741053032051,-1768.58,0.00012881,2]
[355277958,1741053032062,-569.63,0.00012881,2]
[355277959,1741053032072,-940.5,0.00012881,2]
[355277960,1741053032083,-976.78,0.00012881,2]
[355277961,1741053032093,-2556.55,0.00012881,2]
[355277962,1741053032103,-500.0,0.00012881,2]
[355277963,1741053032114,-1529.71,0.00012881,2]
[355277964,1741053032124,-1505.65,0.00012881,2]
[355277965,1741053032135,-1200.4,0.00012881,2]
[355277966,1741053032145,-981.63,0.00012881,2]
[355277967,1741053032155,-3627.04,0.00012881,2]
[355277968,1741053032164,-1466.78,0.00012881,2]
[355277969,1741053032174,-1262.57,0.00012881,2]
[355277970,1741053032185,-557.45,0.00012881,2]
[355277971,1741053032195,-500.0,0.00012881,2]
[355277972,1741053032205,-3092.44,0.00012881,2]
[355277973,1741053032219,-566.01,0.00012881,2]
[355277974,1741053032229,-1068.39,0.00012881,2]
[355277975,1741053032238,-1450.420571,0.00012882,2]
[355277976,1741053032248,-1959.458977,0.00012882,2]
[355277977,1741053032259,-1372.97,0.00012882,2]
[355277978,1741053032269,-1187.5,0.00012882,2]
[355277979,1741053032279,-2949.08,0.00012882,2]
[355277980,1741053032289,-1130.73,0.00012882,2]
[355277981,1741053032299,-557.49,0.00012882,2]
[355277982,1741053032309,-910.4,0.00012882,2]
[355277983,1741053032319,-637.11,0.00012882,2]
[355277984,1741053032329,-745.53,0.00012882,2]
[355277985,1741053032338,-1274.37,0.00012882,2]
[355277986,1741053032348,-500.0,0.00012882,2]
[355277987,1741053032358,-758.65,0.00012882,2]
[355277988,1741053032368,-1395.85,0.00012882,2]
[355277989,1741053032377,-1268.89,0.00012882,2]
[355277990,1741053032387,-810.01,0.00012882,2]
[355277991,1741053032397,-500.0,0.00012882,2]
[355277992,1741053032406,-650.23,0.00012882,2]
[355277993,1741053032416,-769.46,0.00012882,2]
[355277994,1741053032425,-500.0,0.00012882,2]
[355277995,1741053032435,-704.79,0.00012882,2]
[355277996,1741053032444,-184.68742351,0.00012882,2]
[355277997,1741053032454,-872.5,0.00012882,2]
[355277998,1741053032469,-500.0,0.00012882,2]
[355277999,1741053032479,-791.19,0.00012882,2]
[355278000,1741053032489,-1033.3,0.00012882,2]
[355278001,1741053032498,-795.3,0.00012882,2]
[355278002,1741053032508,-680.81,0.00012882,2]
[355278003,1741053032517,-500.0,0.00012882,2]
[355278004,1741053032527,-500.0,0.00012882,2]
[355278005,1741053032537,-1497.54,0.00012882,2]
[355278006,1741053032547,-1390.8,0.00012882,2]
[355278007,1741053032557,-643.83,0.00012882,2]
[355278008,1741053032567,-1378.65,0.00012882,2]
[355278009,1741053032576,-329.00386833,0.00012882,2]
[355278010,1741053032586,-601.16797317,0.00012882,2]
[355278011,1741053032595,-598.38,0.00012882,2]
[355278012,1741053032605,-500.0,0.00012882,2]
[355278013,1741053032615,-584.47164053,0.00012882,2]
[355278014,1741053032630,-454.09212001,0.00012882,2]
[355278015,1741053032648,-787.26,0.00012882,2]
[355278016,1741053032668,-827.85,0.00012882,2]
[355278017,1741053032687,-771.94,0.00012882,2]
[355278019,1741053032700,-1769.39,0.00012882,2]
[355278021,1741053032712,-500.0,0.00012882,2]
[355278023,1741053032722,-753.02,0.00012882,2]
[355278025,1741053032733,-1051.18,0.00012882,2]
[355278027,1741053032743,-1170.38,0.00012882,2]
[355278029,1741053032754,-683.02,0.00012882,2]
[355278031,1741053032764,-1302.69,0.00012882,2]
[355278033,1741053032775,-1291.35,0.00012882,2]
[355278035,1741053032785,-637.54,0.00012882,2]
[355278037,1741053032795,-500.0,0.00012882,2]
[355278038,1741053032805,-521.91,0.00012882,2]
[355278041,1741053032816,-572.03,0.00012882,2]
[355278043,1741053032827,-1204.28,0.00012882,2]
[355278045,1741053032838,-723.75,0.00012882,2]
[355278047,1741053032848,-1342.76,0.00012882,2]
[355278048,1741053032858,-500.0,0.00012882,2]
[355278051,1741053032869,-401.75921787,0.00012882,2]
[355278053,1741053032879,-978.88,0.00012882,2]
[355278055,1741053032889,-510.50732297,0.00012882,2]
[355278057,1741053032899,-500.0,0.00012882,2]
[355278058,1741053032909,-500.0,0.00012882,2]
[355278060,1741053032920,-707.29,0.00012882,2]
[355278062,1741053032930,-1533.51,0.00012882,2]
[355278064,1741053032940,-1341.32,0.00012882,2]
[355278066,1741053032950,-500.0,0.00012882,2]
[355278068,1741053032964,-500.0,0.00012882,2]
[355278070,1741053032975,-500.0,0.00012882,2]
[355278072,1741053032986,-500.0,0.00012882,2]
[355278074,1741053032997,-500.0,0.00012882,2]
[355278076,1741053033008,-1545.58,0.00012882,2]
[355278078,1741053033018,-656.92,0.00012882,2]
[355278080,1741053033029,-1665.06,0.00012882,2]
[355278082,1741053033039,-627.69,0.00012882,2]
[355278084,1741053033052,-500.0,0.00012882,2]
[355278086,1741053033062,-1979.92,0.00012882,2]
[355278088,1741053033072,-324.13650423,0.00012882,2]
[355278090,1741053033083,-747.45,0.00012882,2]
[355278092,1741053033093,-1800.03,0.00012882,2]
[355278094,1741053033104,-500.0,0.00012882,2]
[355278096,1741053033115,-8506.94,0.00012882,2]
[355278098,1741053033126,-967.23,0.00012882,2]
[355278100,1741053033137,-2467.14,0.00012882,2]
[355278102,1741053033148,-500.0,0.00012882,2]
[355278104,1741053033158,-500.0,0.00012882,2]
[355278106,1741053033169,-1154.21,0.00012882,2]
[355278108,1741053033179,-1355.3,0.00012882,2]
[355278110,1741053033190,-872.87,0.00012882,2]
[355278112,1741053033200,-500.0,0.00012882,2]
[355278114,1741053033214,-2213.18,0.00012882,2]
[355278116,1741053033224,-2648.63,0.00012882,2]
[355278118,1741053033235,-609.33,0.00012882,2]
[355278120,1741053033245,-896.26,0.00012882,2]
[355278122,1741053033255,-2427.39,0.00012882,2]
[355278124,1741053033265,-1082.05401097,0.00012882,2]
[355278128,1741053033290,-699.23598903,0.00012882,2]
[355278129,1741053033301,-2574.81332804,0.00012882,2]
[355278132,1741053033315,-8353.42994712,0.00012882,2]
[355278138,1741053033373,-2390.06453542,0.00012882,2]
[355278141,1741053033425,-303.94998102,0.00012882,2]
[355278142,1741053033438,-13213.7222084,0.00012882,2]
[355278143,1741053033450,-1462.96,0.00012882,2]
[355278144,1741053033464,-5298.56,0.00012882,2]
[355278145,1741053033475,-447.39118087,0.00012882,2]
[355278146,1741053033496,-337.52256828,0.00012882,2]
[355278147,1741053033542,-731.62977296,0.00012882,2]
[355278148,1741053033588,-1098.58120238,0.00012882,2]
[355278149,1741053033601,-749.64307339,0.00012882,2]
[355278150,1741053033614,-279.92536832,0.00012882,2]
[355278159,1741053033778,-73.4268338,0.00012882,2]
[355278161,1741053033788,-2257.46,0.00012882,2]
[355278163,1741053033799,-500.0,0.00012882,2]
[355278165,1741053033810,-500.0,0.00012882,2]
[355278167,1741053033820,-1207.25,0.00012882,2]
[355278169,1741053033830,-471.16133178,0.00012882,2]
[355278171,1741053033841,-599.72,0.00012882,2]
[355278173,1741053033850,-2377.48,0.00012882,2]
[355278175,1741053033860,-2686.22,0.00012882,2]
[355278177,1741053033871,-180.25393036,0.00012882,2]
[355278180,1741053033891,-1127.43606964,0.00012882,2]
[355278181,1741053033902,-900.96,0.00012882,2]
[355278183,1741053033912,-745.09,0.00012882,2]
[355278185,1741053033922,-500.0,0.00012882,2]
[355278187,1741053033932,-976.82845774,0.00012882,2]
[355278207,1741053038123,-382.1998,0.00012782,2]
[355278208,1741053038133,-131.29720321,0.00012782,2]
[355278209,1741053038144,-161.97649679,0.00012782,2]
[355278210,1741053038154,-361.09564563,0.00012881,2]
[355278211,1741053038170,-240.43435437,0.00012881,2]
[355278212,1741053038180,-583.88564564,0.00012881,2]
[355278213,1741053038191,-650.77435436,0.00012881,2]
[355278214,1741053038201,-1315.77,0.00012881,2]
[355278215,1741053038213,-6099.27154226,0.00012882,2]
[355278216,1741053038223,-500.0,0.00012882,2]
[355278217,1741053038232,-530.98,0.00012882,2]
[355278218,1741053038242,-500.0,0.00012882,2]
[355278220,1741053038252,-2736.63,0.00012882,2]
[355278222,1741053038261,-2034.17,0.00012882,2]
[355278224,1741053038271,-2225.95,0.00012882,2]
[355278226,1741053038280,-210.25410338,0.00012882,2]
[355278228,1741053038291,-5661.62589662,0.00012882,2]
[355278230,1741053038301,-500.0,0.00012882,2]
[355278232,1741053038310,-1422.76,0.00012882,2]
[355278234,1741053038319,-882.38,0.00012882,2]
[355278236,1741053038329,-500.0,0.00012882,2]
[355278238,1741053038338,-7056.28,0.00012882,2]
[355278240,1741053038348,-1507.24,0.00012882,2]
[355278242,1741053038358,-475.43977267,0.00012882,2]
[355278244,1741053038370,-1267.5,0.00012882,2]
[355278248,1741053038399,-7.59022733,0.00012882,2]
[355278251,1741053038409,-1858.22667937,0.00012882,2]
[355278254,1741053038421,-416.04690249,0.00012882,2]
[355278256,1741053038432,-1739.44641814,0.00012882,2]
[355278258,1741053038442,-1623.22,0.00012882,2]
[355278260,1741053038452,-1413.05,0.00012882,2]
[355278262,1741053038464,-2136.57,0.00012882,2]
[355278265,1741053038476,-10722.56342456,0.00012882,2]
[355278267,1741053038488,-6316.67,0.00012882,2]
[355278269,1741053038500,-13655.65657544,0.00012882,2]
[355278271,1741053038510,-500.0,0.00012882,2]
[355278273,1741053038521,-2652.05,0.00012882,2]
[355278275,1741053038531,-500.0,0.00012882,2]
[355278277,1741053038541,-3832.06,0.00012882,2]
[355278279,1741053038551,-559.73,0.00012882,2]
[355278281,1741053038560,-2036.76,0.00012882,2]
[355278283,1741053038570,-1531.99,0.00012882,2]
[355278285,1741053038580,-5011.65,0.00012882,2]
[355278287,1741053038589,-2512.8,0.00012882,2]
[355278289,1741053038599,-818.77,0.00012882,2]